fUSD/lending_fUSD_20260331
["ID","MTS","AMOUNT","RATE_DAILY","PERIOD"]
[419137127,1774915204976,163.0,8.4e-05,3]
[419137131,1774915505226,163.0,8.4e-05,3]
[419137132,1774915538714,-150.0,0.00013284,2]
[419137137,1774915767127,-166.66,0.00013647,2]
[419137138,1774915767148,-327.03581513,0.00013683,2]
[419137139,1774915767169,-500.0,0.00013716,2]
[419137140,1774915767189,-500.0,0.00013716,2]
[419137141,1774915767209,-500.0,0.00013716,2]
[419137142,1774915767229,-500.0,0.00013716,2]
[419137143,1774915767250,-300.0,0.00013736,2]
[419137144,1774915767272,-1200.0,0.00013837,2]
[419137145,1774915767292,-150.0,0.00013837,2]
[419137146,1774915767311,-2500.0,0.00013838,2]
[419137147,1774915767333,-2500.0,0.00013838,2]
[419137148,1774915767354,-678.2627668,0.00013838,2]
[419137156,1774915832519,-500.0,0.00013738,2]
[419137157,1774915832528,-136.77253227,0.00013886,2]
[419137158,1774915832539,-2363.22746773,0.00013886,2]
[419137159,1774915832552,-600.0,0.0001391,2]
[419137160,1774915832561,-166.66,0.00013934,2]
[419137161,1774915832571,-300.0,0.00013989,2]
[419137162,1774915832580,-600.0,0.00013992,2]
[419137163,1774915832590,-600.0,0.00013992,2]
[419137164,1774915832600,-734.24029977,0.00014019,2]
[419137165,1774915832611,-385.00293256,0.00014019,2]
[419137166,1774915832627,-1380.75676767,0.00014019,2]
[419137167,1774915832636,-2500.0,0.00014019,2]
[419137168,1774915832646,-500.0,0.00014133,2]
[419137169,1774915832656,-150.0,0.000142,2]
[419137170,1774915832666,-166.66,0.00014222,2]
[419137171,1774915832675,-2000.0,0.000145,2]
[419137172,1774915832684,-166.66,0.00014509,2]
[419137173,1774915832694,-1600.0,0.00014555,2]
[419137174,1774915832704,-162.74,0.00014561,2]
[419137175,1774915832714,-1500.0,0.00014708,2]
[419137176,1774915832724,-166.66,0.00014796,2]
[419137177,1774915832733,-500.0,0.00014832,2]
[419137178,1774915832742,-250.0,0.00014832,2]
[419137179,1774915832752,-600.0,0.00014832,2]
[419137180,1774915832761,-195.0,0.00014832,2]
[419137181,1774915832771,-195.0,0.00014832,2]
[419137182,1774915832780,-195.0,0.00014832,2]
[419137183,1774915832790,-195.0,0.00014832,2]
[419137184,1774915832799,-195.0,0.00014832,2]
[419137185,1774915832808,-300.0,0.00014832,2]
[419137186,1774915832818,-300.0,0.00014832,2]
[419137187,1774915832828,-300.0,0.00014832,2]
[419137188,1774915832837,-300.0,0.00014832,2]
[419137189,1774915832846,-250.0,0.00014832,2]
[419137190,1774915832855,-150.0,0.00014958,2]
[419137191,1774915832865,-174.81,0.0001496,2]
[419137192,1774915832874,-161.23,0.00014968,2]
[419137193,1774915832884,-150.0,0.00014998,2]
[419137194,1774915832894,-166.66,0.00015084,2]
[419137195,1774915832903,-2500.0,0.00015222,2]
[419137196,1774915832912,-300.0,0.00015222,2]
[419137197,1774915832922,-350.0,0.00015266,2]
[419137198,1774915832931,-600.0,0.00015275,2]
[419137199,1774915832940,-878.32470845,0.00015309,2]
[419137200,1774915832950,-1480.17,0.0001531,2]
[419137201,1774915832959,-9999.99,0.0001531,2]
[419137202,1774915832969,-351.22,0.0001531,2]
[419137203,1774915833385,-649.52,0.0001531,2]
[419137204,1774915833408,-2997.83,0.0001531,2]
[419137205,1774915833418,-150.0,0.00015359,2]
[419137206,1774915833427,-2834.0,0.0001536,2]
[419137207,1774915833436,-22928.64,0.0001536,2]
[419137208,1774915833446,-108261.34,0.0001536,2]
[419137209,1774915833455,-9999.99,0.0001536,2]
[419137210,1774915833464,-299.99,0.0001536,2]
[419137211,1774915833474,-150.99,0.0001536,2]
[419137212,1774915833483,-154.44,0.0001536,2]
[419137213,1774915833492,-500.0,0.00015373,2]
[419137214,1774915833502,-383.12578528,0.00015388,2]
[419137215,1774915833511,-196.8426,0.000155,7]
[419137216,1774915833520,-500.0,0.000155,7]
[419137217,1774915833529,-4000.0,0.00015507,2]
[419137218,1774915833538,-350.0,0.0001551,2]
[419137219,1774915833548,-4645.0,0.00015554,2]
[419137220,1774915833557,-500.0,0.000156,5]
[419137221,1774915833567,-5428.0,0.00015667,2]
[419137222,1774915833576,-2976.0,0.00015671,2]
[419137223,1774915833586,-5428.0,0.00015681,2]
[419137224,1774915833601,-1381.569,0.00015681,2]
[419137225,1774915833611,-1000.0,0.000157,5]
[419137226,1774915833620,-5428.0,0.00015712,2]
[419137227,1774915833631,-1000.0,0.00015729,2]
[419137228,1774915833640,-1000.0,0.00015734,2]
[419137229,1774915833649,-4645.0,0.00015744,2]
[419137230,1774915833659,-500.0,0.00015749,2]
[419137231,1774915833668,-500.0,0.00015749,2]
[419137232,1774915833678,-344.7663,0.0001575,2]
[419137233,1774915833687,-50578.8803,0.0001575,2]
[419137234,1774915833696,-2976.0,0.00015753,2]
[419137235,1774915833705,-1000.0,0.00015793,2]
[419137236,1774915833715,-11949.69645481,0.00015799,2]
[419137237,1774915833724,-32505.6651,0.000158,2]
[419137238,1774915833734,-1500.0,0.000158,5]
[419137239,1774915833743,-2976.0,0.00015817,2]
[419137240,1774915833752,-1000.0,0.00015826,2]
[419137241,1774915833762,-2976.0,0.00015834,2]
[419137242,1774915833771,-1604.16135,0.0001584,2]
[419137243,1774915833780,-1604.16136,0.0001584,2]
[419137244,1774915833789,-1604.16135,0.0001584,2]
[419137245,1774915833799,-1000.0,0.00015857,2]
[419137246,1774915833808,-2976.0,0.00015867,2]
[419137247,1774915833818,-500.0,0.00015872,2]
[419137248,1774915833828,-5428.0,0.00015872,2]
[419137249,1774915833838,-160.0,0.00015874,7]
[419137250,1774915833848,-1000.0,0.00015874,2]
[419137251,1774915833858,-4645.0,0.00015874,2]
[419137252,1774915833868,-2976.0,0.00015883,2]
[419137253,1774915833878,-2000.0,0.0001589,2]
[419137254,1774915833888,-1658.75787621,0.00015895,2]
[419137255,1774915833903,-2341.24212379,0.00015895,2]
[419137256,1774915833914,-1000.0,0.000159,2]
[419137257,1774915833923,-2500.0,0.000159,2]
[419137258,1774915833933,-5000.0,0.000159,2]
[419137259,1774915833942,-2000.0,0.000159,5]
[419137260,1774915833952,-158.12640686,0.000159,2]
[419137261,1774915833962,-165.5629631,0.000159,2]
[419137262,1774915833973,-3699.6273,0.000159,2]
[419137263,1774915833983,-150.0,0.000159,2]
[419137264,1774915833992,-2127.94027946,0.000159,2]
[419137265,1774915834003,-160.26053588,0.000159,2]
[419137266,1774915834013,-305.99940066,0.000159,2]
[419137267,1774915834025,-170.33549472,0.000159,2]
[419137268,1774915834035,-1571.0,0.00015912,2]
[419137269,1774915834045,-2976.0,0.00015925,2]
[419137270,1774915834054,-2976.0,0.00015928,2]
[419137271,1774915834064,-5263.0026519,0.00015936,2]
[419137272,1774915834074,-2586.3999735,0.00015937,2]
[419137273,1774915834083,-151.0,0.00015957,2]
[419137274,1774915834094,-5428.0,0.00015957,2]
[419137275,1774915834110,-500.0,0.00015973,2]
[419137276,1774915834121,-2976.0,0.00015979,2]
[419137277,1774915834132,-453.0,0.00015983,2]
[419137278,1774915834141,-301.64177693,0.0001599,2]
[419137279,1774915834151,-151.0,0.00015999,2]
[419137280,1774915834161,-151.0,0.00015999,2]
[419137281,1774915834171,-151.0,0.00015999,2]
[419137282,1774915834181,-191.50011774,0.00015999,2]
[419137283,1774915834191,-500.0,0.00015999,2]
[419137284,1774915834201,-500.0,0.00015999,2]
[419137285,1774915834210,-500.0,0.00015999,2]
[419137286,1774915834220,-500.0,0.00015999,2]
[419137287,1774915834230,-500.0,0.00015999,2]
[419137288,1774915834239,-323.58403102,0.00015999,2]
[419137289,1774915834249,-294.84214056,0.00015999,2]
[419137290,1774915834259,-500.0,0.00015999,2]
[419137291,1774915834268,-437.89909411,0.00015999,2]
[419137292,1774915834279,-500.0,0.00015999,2]
[419137293,1774915834288,-67245.02369477,0.00016,2]
[419137294,1774915834301,-86180.65340832,0.00016,2]
[419137295,1774915834313,-91543.65670349,0.00016,2]
[419137296,1774915834326,-303.8818997,0.00016,2]
[419137297,1774915834342,-302.18492085,0.00016,2]
[419137298,1774915834354,-3200.41564869,0.00016,2]
[419137300,1774915838354,-5702.07042462,0.00016,2]
[419137301,1774915838688,-6165.3231225,0.00016,2]
[419137302,1774915838702,-307.92957538,0.00016,2]
[419137304,1774915840768,-7934.0,0.00016,2]
[419137325,1774915843592,-343989.60647761,0.00016,2]
[419137334,1774915846266,-12069.53627672,0.00016,2]
[419137335,1774915846277,-426.1346263,0.00016,2]
[419137336,1774915846320,-1789.94597,0.00016,2]
[419137337,1774915846639,-10805.896,0.00016,2]
[419137353,1774916101367,250.0,0.00013,2]
[419137355,1774916398032,5.03298519,7.242e-05,2]
[419137356,1774916398067,157.24701481,7.242e-05,2]
[419137357,1774916398246,162.28,7.9e-05,2]
[419137358,1774916568593,157.04,8.538e-05,2]
[419137359,1774916827120,-235.69138833,8.558e-05,2]
[419137360,1774916957132,-3.30861167,8.558e-05,2]
[419137361,1774916957154,-162.28,8.558e-05,2]
[419137362,1774916957176,-1200.0,9.199e-05,2]
[419137363,1774916957197,-1213.63,9.2e-05,2]
[419137364,1774916957217,-204.12,9.2e-05,2]
[419137365,1774916957237,-303.39,9.2e-05,2]
[419137366,1774916957258,-204.12,9.2e-05,2]
[419137367,1774916957278,-303.39,9.2e-05,2]
[419137368,1774916957298,-303.39,9.2e-05,2]
[419137369,1774916957318,-303.39,9.2e-05,2]
[419137370,1774916957339,-165.54502488,9.2e-05,2]
[419137371,1774916957360,-1478.26,9.2e-05,2]
[419137372,1774916957385,-248.67458869,9.2e-05,2]
[419137373,1774916972093,-120.88541131,9.2e-05,2]
[419137374,1774916972115,-369.56,9.2e-05,2]
[419137375,1774916972135,-369.56,9.2e-05,2]
[419137376,1774916972154,-369.56,9.2e-05,2]
[419137377,1774916972174,-500.0,9.2e-05,2]
[419137378,1774916972194,-380.89845004,9.2e-05,2]
[419137379,1774916972215,-500.0,9.2e-05,2]
[419137380,1774916972236,-500.0,9.2e-05,2]
[419137381,1774916972255,-500.0,9.2e-05,2]
[419137382,1774916972274,-500.0,9.2e-05,2]
[419137383,1774916972294,-500.0,9.2e-05,2]
[419137384,1774916972316,-162.28,9.216e-05,2]
[419137385,1774916972336,-250.0,9.414e-05,2]
[419137386,1774916972356,-162.28,9.875e-05,2]
[419137387,1774916972376,-10618.0,0.0001,2]
[419137388,1774916972396,-5534.0,0.000103,3]
[419137389,1774916972416,-150.0,0.000105,2]
[419137390,1774916972436,-162.28,0.00010533,2]
[419137391,1774916972456,-5534.0,0.000106,5]
[419137392,1774916972476,-162.28,0.00011191,2]
[419137393,1774916972496,-1387.6,0.00011507,2]
[419137394,1774916972516,-162.28,0.0001185,2]
[419137395,1774916972537,-196.8321,0.000119,7]
[419137396,1774916972557,-225.628268,0.00012104,2]
[419137397,1774916972578,-162.28,0.00012508,2]
[419137398,1774917005429,334.63952761,9.2e-05,2]
[419137399,1774917031484,-162.28,0.00013166,2]
[419137400,1774917031494,-300.0,0.00013225,2]
[419137401,1774917031504,-600.0,0.00013283,2]
[419137402,1774917031514,-300.0,0.00013386,2]
[419137403,1774917031524,-300.0,0.00013386,2]
[419137404,1774917031534,-300.0,0.00013386,2]
[419137405,1774917031543,-311.7696613,0.00013528,2]
[419137406,1774917031556,-288.2303387,0.00013528,2]
[419137407,1774917031566,-523.27437551,0.00013551,2]
[419137408,1774917031578,-1126.37562449,0.00013551,2]
[419137409,1774917031588,-200.0,0.00013696,2]
[419137410,1774917031599,-162.28,0.00013825,2]
[419137411,1774917031608,-1619.0,0.000144,2]
[419137412,1774917031617,-150.0,0.000144,2]
[419137413,1774917031627,-195.0,0.00014483,2]
[419137414,1774917031636,-195.0,0.00014483,2]
[419137415,1774917031646,-195.0,0.00014483,2]
[419137416,1774917031655,-195.0,0.00014483,2]
[419137417,1774917031665,-314.12857025,0.00014483,2]
[419137418,1774917031676,-300.0,0.00014483,2]
[419137419,1774917031686,-300.0,0.00014483,2]
[419137420,1774917031695,-300.0,0.00014483,2]
[419137421,1774917031705,-300.0,0.00014483,2]
[419137422,1774917031717,-300.0,0.00014483,2]
[419137423,1774917031727,-600.0,0.00014483,2]
[419137424,1774917031737,-2500.0,0.00014483,2]
[419137425,1774917031748,-2500.0,0.00014483,2]
[419137426,1774917031758,-1051.52257217,0.00014483,2]
[419137427,1774917031769,-300.0,0.00014483,2]
[419137428,1774917031779,-250.0,0.00014483,2]
[419137429,1774917031789,-162.28,0.00014483,2]
[419137430,1774917031799,-500.0,0.00014611,2]
[419137431,1774917031809,-151.0,0.00014862,2]
[419137432,1774917031818,-151.0,0.00014862,2]
[419137433,1774917031828,-151.0,0.00014862,2]
[419137434,1774917031838,-151.0,0.00014862,2]
[419137435,1774917031848,-182.53770041,0.00014862,2]
[419137436,1774917031859,-300.0,0.0001487,2]
[419137437,1774917031868,-3240.0,0.00014871,2]
[419137438,1774917031878,-500.0,0.00014873,2]
[419137439,1774917031888,-500.0,0.00014927,2]
[419137440,1774917031897,-500.0,0.00014927,2]
[419137441,1774917031907,-500.0,0.00014927,2]
[419137442,1774917031917,-500.0,0.00014927,2]
[419137443,1774917031927,-500.0,0.00014927,2]
[419137444,1774917031937,-500.0,0.00014927,2]
[419137445,1774917031946,-500.0,0.00014927,2]
[419137446,1774917031956,-500.0,0.00014927,2]
[419137447,1774917031967,-500.0,0.00014927,2]
[419137448,1774917031977,-500.0,0.00014927,2]
[419137449,1774917031988,-500.0,0.00014927,2]
[419137450,1774917031999,-500.0,0.00014927,2]
[419137451,1774917032008,-500.0,0.00014927,2]
[419137452,1774917032018,-500.0,0.00014927,2]
[419137453,1774917032028,-500.0,0.00014927,2]
[419137454,1774917032038,-500.0,0.00014927,2]
[419137455,1774917032047,-487.16585343,0.00014927,2]
[419137456,1774917032056,-605.90333194,0.00014927,2]
[419137457,1774917032066,-500.0,0.00014927,2]
[419137458,1774917032075,-300.0,0.00015,2]
[419137459,1774917032084,-2808.0,0.00015,2]
[419137460,1774917032094,-3743.30733954,0.00015009,2]
[419137461,1774917032103,-6367.90872937,0.00015009,2]
[419137462,1774917032112,-1852.42,0.00015028,2]
[419137463,1774917032127,-150.0,0.00015059,2]
[419137464,1774917032136,-112197.01338438,0.0001506,2]
[419137465,1774917032149,-34995.80871562,0.0001506,2]
[419137466,1774917032158,-150.0,0.0001511,2]
[419137467,1774917032167,-657.0206,0.0001511,2]
[419137468,1774917032177,-2500.0,0.0001511,2]
[419137469,1774917032187,-872.3071,0.0001511,2]
[419137470,1774917032196,-197.54,0.0001515,2]
[419137471,1774917032206,-1001.9357854,0.00015159,2]
[419137472,1774917032216,-500.0,0.00015201,2]
[419137473,1774917032225,-9999.99,0.0001531,2]
[419137474,1774917032235,-9999.99,0.0001531,2]
[419137475,1774917032244,-150.99,0.0001531,2]
[419137476,1774917032254,-725.48,0.0001531,2]
[419137477,1774917032264,-299.99,0.0001531,2]
[419137478,1774917032273,-3670.13,0.0001531,2]
[419137479,1774917032283,-9845.88,0.0001531,2]
[419137480,1774917032293,-172.04,0.00015357,2]
[419137481,1774917032303,-1000.0,0.000154,2]
[419137482,1774917032313,-162.0,0.0001547,2]
[419137483,1774917032323,-499.32927861,0.00015475,2]
[419137484,1774917032332,-3743.30733945,0.0001555,2]
[419137485,1774917032342,-300.0,0.000156,5]
[419137486,1774917032351,-196.8215,0.000156,7]
[419137487,1774917032361,-600.0,0.000157,5]
[419137488,1774917032371,-1463.982,0.00015734,2]
[419137489,1774917032380,-701.0,0.00015781,2]
[419137490,1774917032389,-350.0,0.0001579,2]
[419137491,1774917032398,-298.0,0.000158,2]
[419137492,1774917032408,-900.0,0.000158,5]
[419137493,1774917032418,-286.1894,0.00015812,2]
[419137494,1774917032428,-298.32432,0.0001584,2]
[419137495,1774917032438,-298.32433,0.0001584,2]
[419137496,1774917032447,-3625.095,0.00015849,2]
[419137497,1774917032456,-621.0,0.00015849,2]
[419137498,1774917032466,-298.32433,0.0001585,2]
[419137499,1774917032475,-500.0,0.00015871,2]
[419137500,1774917032486,-500.0,0.00015872,2]
[419137501,1774917032495,-311.66352319,0.000159,2]
[419137502,1774917032505,-5000.0,0.000159,2]
[419137503,1774917032514,-1300.0,0.000159,5]
[419137504,1774917032525,-12771.30451776,0.000159,2]
[419137505,1774917032535,-200.0,0.00015931,2]
[419137506,1774917032544,-356.03578514,0.00015973,2]
[419137507,1774917032554,-500.0,0.00015973,2]
[419137508,1774917032564,-181.65378036,0.00015993,2]
[419137509,1774917032574,-222.47268696,0.00015993,2]
[419137510,1774917032585,-1185.0694998,0.00015996,2]
[419137511,1774917032595,-666.0,0.00015999,2]
[419137512,1774917032605,-29603.06030631,0.00016,2]
[419137513,1774917032623,-850.0,0.00016,2]
[419137514,1774917032635,-2926.09408268,0.00016,2]
[419137515,1774917032647,-4011.49001972,0.00016,2]
[419137516,1774917032658,-10031.0010647,0.00016,2]
[419137517,1774917032674,-250.0,0.00016,2]
[419137521,1774917037639,-200.0,0.00015275,2]
[419137522,1774917037648,-270.60992569,0.000159,2]
[419137523,1774917037660,-4261.86278751,0.000159,2]
[419137532,1774917037985,-467.5272868,0.000159,2]
[419137534,1774917037994,-201.09451795,0.0001599,2]
[419137536,1774917038003,-4660.03819525,0.00016,2]
[419137538,1774917038014,-471.87366345,0.00016,2]
[419137539,1774917038025,-753.25136983,0.00016,2]
[419137540,1774917038037,-331.43,0.00016,2]
[419137541,1774917038048,-1100.0,0.00016,2]
[419137578,1774917039830,-953.00079936,0.00016,2]
[419137579,1774917039842,-21217.77210195,0.00016,2]
[419137580,1774917039853,-1694.48704696,0.00016,2]
[419137581,1774917039884,-3198.82868942,0.00016,2]
[419137582,1774917040416,-651.84043958,0.00015849,2]
[419137583,1774917040428,-694.15956042,0.00015849,2]
[419137584,1774917040437,-220.53588819,0.00016,2]
[419137585,1774917040592,-5785.13890474,0.00016,2]
[419137596,1774917047254,-403.42000001,0.0001511,2]
[419137597,1774917047265,-6729.90515796,0.0001511,2]
[419137598,1774917047277,-11291.4,0.0001511,2]
[419137599,1774917047362,-2035.486362,0.0001511,2]
[419137601,1774917048987,-88657.18218003,0.0001511,2]
[419137602,1774917048997,-165.56296308,0.000159,2]
[419137603,1774917049007,-288439.85046297,0.00016,2]
[419137604,1774917049018,-227755.81090497,0.00016,2]
[419137607,1774917110976,452.984,8.458e-05,2]
[419137636,1774917307099,156.0,8.458e-05,3]
[419137638,1774917607324,156.0,8.458e-05,3]
[419137643,1774918207970,156.0,8.458e-05,3]
[419137649,1774918232083,-250.0,0.00013,2]
[419137650,1774918232093,-3.83271447,0.00013254,2]
[419137653,1774918232145,-246.16728553,0.00013254,2]
[419137655,1774918232154,-191.360325,0.00013508,2]
[419137657,1774918232164,-1600.0,0.0001355,2]
[419137659,1774918232173,-255.5783311,0.00013557,2]
[419137661,1774918232182,-150.0,0.00013557,2]
[419137663,1774918232192,-3306.50468195,0.000136,2]
[419137665,1774918232202,-151.0,0.00013635,2]
[419137667,1774918232211,-151.0,0.00013659,2]
[419137669,1774918232221,-1200.0,0.00013829,2]
[419137670,1774918232230,-300.0,0.0001383,2]
[419137672,1774918232240,-1448.27720956,0.00013831,2]
[419137674,1774918232250,-5064.48,0.00013832,2]
[419137677,1774918232260,-249.11,0.00013848,2]
[419137678,1774918232270,-200.0,0.00013883,2]
[419137680,1774918232280,-151.0,0.00013883,2]
[419137682,1774918232290,-151.0,0.00013883,2]
[419137684,1774918232300,-151.0,0.00013883,2]
[419137687,1774918232312,-151.0,0.00013883,2]
[419137689,1774918232322,-151.0,0.00013883,2]
[419137691,1774918232332,-151.0,0.00013883,2]
[419137692,1774918232341,-151.0,0.00013883,2]
[419137694,1774918232351,-151.0,0.00013883,2]
[419137696,1774918232360,-151.0,0.00013883,2]
[419137698,1774918232369,-14243.83,0.00013892,2]
[419137700,1774918232379,-150.0,0.000139,2]
[419137702,1774918232389,-150.0,0.00014224,2]
[419137703,1774918232399,-299.0,0.00014231,2]
[419137704,1774918232409,-165.0,0.00014254,2]
[419137705,1774918232419,-221.0,0.00014255,2]
[419137706,1774918232431,-150.0,0.00014299,2]
[419137707,1774918232441,-150.0,0.000143,2]
[419137708,1774918232451,-600.0,0.000143,2]
[419137709,1774918232461,-5139.63528494,0.000143,2]
[419137710,1774918232471,-2500.0,0.000143,2]
[419137711,1774918232481,-153.45833412,0.000143,2]
[419137712,1774918232491,-500.0,0.000143,2]
[419137713,1774918232510,-200.0,0.000143,2]
[419137715,1774918232524,-300.0,0.000143,2]
[419137716,1774918232535,-195.0,0.000143,2]
[419137719,1774918232546,-195.0,0.000143,2]
[419137721,1774918232556,-300.0,0.000143,2]
[419137723,1774918232567,-300.0,0.000143,2]
[419137725,1774918232577,-300.0,0.000143,2]
[419137727,1774918232587,-300.0,0.000143,2]
[419137729,1774918232597,-300.0,0.000143,2]
[419137731,1774918232607,-195.0,0.000143,2]
[419137733,1774918232617,-195.0,0.000143,2]
[419137735,1774918232627,-195.0,0.000143,2]
[419137737,1774918232638,-250.0,0.000143,2]
[419137739,1774918232649,-521.05,0.00014376,2]
[419137741,1774918232659,-176.04,0.00014376,2]
[419137743,1774918232669,-200.0,0.00014431,2]
[419137745,1774918232679,-2000.0,0.000145,2]
[419137747,1774918232689,-500.0,0.00014634,2]
[419137749,1774918232698,-183.74,0.00014634,2]
[419137751,1774918232708,-2808.0,0.0001472,2]
[419137753,1774918232718,-191.36032499,0.00014747,2]
[419137755,1774918232727,-9891.0442,0.000148,2]
[419137757,1774918232737,-24367.8406,0.000148,2]
[419137759,1774918232748,-1720.8,0.00014808,2]
[419137761,1774918232758,-2000.0,0.00014809,2]
[419137763,1774918232768,-880.86,0.00014817,2]
[419137765,1774918232778,-4844.31836257,0.00014826,2]
[419137767,1774918232789,-500.0,0.00014847,2]
[419137769,1774918232799,-151.0,0.00014897,2]
[419137771,1774918232809,-131528.162,0.000149,2]
[419137774,1774918232820,-150.0,0.00014926,2]
[419137776,1774918232829,-150.0,0.00014926,2]
[419137778,1774918232839,-200.0,0.00014926,2]
[419137780,1774918232849,-1000.0,0.0001496,2]
[419137782,1774918232859,-214.60924826,0.00014979,2]
[419137784,1774918232868,-161.0,0.00015,2]
[419137786,1774918232878,-300.0,0.00015,2]
[419137788,1774918232888,-1571.0,0.0001507,2]
[419137790,1774918232898,-880.86,0.00015091,2]
[419137792,1774918232907,-1189.2549,0.000151,2]
[419137794,1774918232917,-160.0,0.00015196,2]
[419137796,1774918232927,-599.60298507,0.00015199,2]
[419137798,1774918232936,-151.0,0.00015199,2]
[419137800,1774918232946,-1428.38747117,0.00015199,2]
[419137802,1774918232956,-209.40437684,0.00015199,2]
[419137804,1774918232966,-209.40437684,0.00015199,2]
[419137806,1774918232976,-174.61919141,0.00015199,2]
[419137808,1774918232986,-743.50770149,0.00015199,2]
[419137810,1774918232996,-565.95965776,0.00015199,2]
[419137812,1774918233007,-200.0,0.00015199,2]
[419137814,1774918233017,-279.9045709,0.00015199,2]
[419137816,1774918233026,-302.83808233,0.00015199,2]
[419137818,1774918233036,-196.855,0.000152,7]
[419137820,1774918233046,-7142.4599701,0.000152,2]
[419137822,1774918233056,-5000.0,0.000152,2]
[419137825,1774918233067,-4844.31836251,0.00015201,2]
[419137827,1774918233076,-500.0,0.00015208,2]
[419137829,1774918233086,-229.00541124,0.00015208,2]
[419137831,1774918233096,-500.0,0.00015208,2]
[419137833,1774918233106,-500.0,0.00015208,2]
[419137835,1774918233116,-291.54887071,0.00015208,2]
[419137837,1774918233125,-500.0,0.00015208,2]
[419137839,1774918233134,-500.0,0.00015208,2]
[419137841,1774918233144,-500.0,0.00015208,2]
[419137843,1774918233153,-500.0,0.00015208,2]
[419137845,1774918233163,-500.0,0.00015208,2]
[419137847,1774918233172,-535.00160478,0.00015208,2]
[419137849,1774918233182,-455.45616034,0.00015208,2]
[419137851,1774918233193,-500.0,0.00015208,2]
[419137853,1774918233203,-500.0,0.00015208,2]
[419137855,1774918233214,-504.48,0.00015209,2]
[419137857,1774918233225,-695.34,0.00015209,2]
[419137859,1774918233235,-500.0,0.00015209,2]
[419137861,1774918233245,-502.65090833,0.00015209,2]
[419137862,1774918233255,-500.0,0.00015209,2]
[419137864,1774918233264,-508.28,0.00015209,2]
[419137865,1774918233274,-988.09,0.00015209,2]
[419137866,1774918233284,-500.0,0.00015209,2]
[419137867,1774918233294,-500.0,0.00015209,2]
[419137868,1774918233304,-500.0,0.00015209,2]
[419137869,1774918233314,-513.36,0.00015209,2]
[419137870,1774918233325,-500.0,0.00015209,2]
[419137871,1774918233334,-500.0,0.00015209,2]
[419137872,1774918233344,-500.0,0.00015209,2]
[419137873,1774918233354,-500.0,0.00015209,2]
[419137874,1774918233364,-500.0,0.00015209,2]
[419137875,1774918233373,-500.0,0.00015209,2]
[419137876,1774918233383,-500.0,0.00015209,2]
[419137877,1774918233393,-500.0,0.00015209,2]
[419137878,1774918233402,-500.0,0.00015209,2]
[419137879,1774918233412,-500.0,0.00015209,2]
[419137880,1774918233421,-500.0,0.00015209,2]
[419137881,1774918233431,-500.0,0.00015209,2]
[419137882,1774918233441,-500.0,0.00015209,2]
[419137883,1774918233451,-1680.0,0.00015212,2]
[419137884,1774918233461,-1600.0,0.00015244,2]
[419137885,1774918233471,-350.0,0.00015303,2]
[419137886,1774918233480,-880.86,0.00015365,2]
[419137887,1774918233490,-155.27634358,0.00015388,2]
[419137888,1774918233499,-7171.97,0.00015422,2]
[419137889,1774918233510,-255.0,0.00015429,2]